{"text_format":"1","workbook":"xlsx","n_sheets":1,"sheets":["PMap1"],"not_rendered":{"charts":1,"images":2,"macros":1,"external_links":1,"defined_names":23,"comments":0,"pivot_tables":0},"unopened":[],"bounds":{"document_bytes":16777216,"sheet_cells":100000,"rows_first":2000,"rows_last":500,"rows_between":2000,"halvings":0,"cell_chars":16384,"cell_head_chars":4096},"cells_cut":0,"cells_raw":0,"read":"whole","date_system":"1900"}

{"sheet":"PMap1","index":0,"n_rows":32,"n_cols":30,"rows_kept":32,"cut":false,"hidden":false,"merged":[[22,5,22,6],[8,27,8,29],[3,2,3,8],[4,2,4,8],[5,2,5,8],[6,2,6,8],[7,2,7,8],[8,2,8,8],[10,5,10,6],[10,1,10,2]]}
[]
[null,{"$f":"IF(DeviceType=\"\",\"Pressure Map of TBC\",\"Pressure Map of \"&DeviceType)","v":"Pressure Map of TBC"}]
[]
[null,"Project"]
[null,"Document Ref."]
[null,"Device Type"]
[null,"Device ID"]
[null,"Test Date"]
[null,"Operator(s)",null,null,null,null,null,null,null,null,null,null,null,null,null,null,null,null,null,null,null,null,null,null,null,null,null,"To set target range"]
[null,null,null,null,null,null,null,null,null,null,null,null,null,null,null,null,null,null,null,null,null,null,null,null,null,null,null,"Tolerance:",0.1]
[null,"ΔP  (kPa)",null,"QMEASURED","√ΔP"," R  ↓CONVENTIONAL↓          ↓FΩ↓",null,"|Error|",null,null,null,null,null,null,null,null,null,null,null,null,null,null,null,null,null,null,null,null,0.39]
[null,"Target Range","Measured","(LPM)","(√Pa)","(√cm H2O min L-1)","(√Pa min L-1)","(%)",null,null,null,null,null,null,null,null,null,null,null,null,null,null,null,null,null,null,null,null,"Min","Max"]
[null,{"$f":"FIXED(AC13,1)&\" → \"&FIXED(AD13,1)","v":"0.3 → 0.5"},null,null,{"$f":"IF(C13=\"\",\"\",(C13*1000)^0.5)","v":""},{"$f":"IF(D13=\"\",\"\",(C13*100/(0.999972*9.80665))^0.5/D13)","v":""},{"$f":"IF(D13=\"\",\"\",(C13*1000)^0.5/D13)","v":""},{"$f":"IF(G13=\"\",\"\",ABS(100*(G13-Resistance)/Resistance))","v":""},null,null,null,null,null,null,null,null,null,null,null,null,null,null,null,null,null,null,null,0.4,{"$f":"AB13-Tolerance","v":0.30000000000000004},{"$f":"AB13+Tolerance","v":0.5}]
[null,{"$f":"FIXED(AC14,1)&\" → \"&FIXED(AD14,1)","v":"0.8 → 1.0"},null,null,{"$f":"IF(C14=\"\",\"\",(C14*1000)^0.5)","v":""},"","","",null,null,null,null,null,null,null,null,null,null,null,null,null,null,null,null,null,null,null,0.9,0.8,1]
[null,"1.5 → 1.7",null,null,"","","","",null,null,null,null,null,null,null,null,null,null,null,null,null,null,null,null,null,null,null,1.6,1.5,1.7000000000000002]
[null,"2.4 → 2.6",null,null,"","","","",null,null,null,null,null,null,null,null,null,null,null,null,null,null,null,null,null,null,null,2.5,2.4,2.6]
[null,"3.4 → 3.6",null,null,"","","","",null,null,null,null,null,null,null,null,null,null,null,null,null,null,null,null,null,null,null,3.5,3.4,3.6]
[null,"4.7 → 4.9",null,null,"","","","",null,null,null,null,null,null,null,null,null,null,null,null,null,null,null,null,null,null,null,4.8,4.7,4.8999999999999995]
[null,"6.2 → 6.4",null,null,"","","","",null,null,null,null,null,null,null,null,null,null,null,null,null,null,null,null,null,null,null,6.3,6.2,6.3999999999999995]
[null,"7.8 → 8.0",null,null,"","","","",null,null,null,null,null,null,null,null,null,null,null,null,null,null,null,null,null,null,null,7.9,7.8000000000000007,8]
[null,"9.7 → 9.9",null,null,"","","","",null,null,null,null,null,null,null,null,null,null,null,null,null,null,null,null,null,null,null,9.8000000000000007,9.7000000000000011,9.9]
[null,null,null,null,"Mean →",{"$f":"IF(D14=\"\",\"\",AVERAGE(F13:F21))","v":""},{"$f":"IF(D14=\"\",\"\",AVERAGE(G13:G21))","v":""}]
[null,null,null,null,"RSD →",{"$f":"IF(D14=\"\",\"\",100*STDEV(F13:F21)/F22)","v":""}]
[]
[null,"Resistance (R)",{"$f":"IF(D14=\"\",\"\",LINEST((C13:C21*1000)^0.5,D13:D21^{1},0))","v":""},4,null,"Notes"]
[null,"Q4 kPa",{"$f":"IF(D14=\"\",\"\",(4000)^0.5/Resistance)","v":""},{"$f":"IF(D14=\"\",\"\",InhaledVolume/(C26/60))","v":""}]
[null,"Q2 kPa",{"$f":"IF(D14=\"\",\"\",(2000)^0.5/Resistance)","v":""},{"$f":"IF(D14=\"\",\"\",InhaledVolume/(C27/60))","v":""}]
[null,"Q6 kPa",{"$f":"IF(D14=\"\",\"\",(6000)^0.5/Resistance)","v":""},{"$f":"IF(D14=\"\",\"\",InhaledVolume/(C28/60))","v":""}]
[null,"ΔP"]
[null,"QΔP",{"$f":"IF(D14=0,\"\",(C29*1000)^0.5/Resistance)","v":""},{"$f":"IF(C29=\"\",\"\",InhaledVolume/(C30/60))","v":""}]
[null,"Q",null,{"$f":"IF(C31=\"\",\"\",InhaledVolume/(C31/60))","v":""}]
[null,"ΔPQ",{"$f":"IF(D14=\"\",\"\",C31^2*Resistance^2/1000)","v":""}]